Workbook

Sheet 入力画面
A1: 釧路町コミュニティ施設使用申請書
K3: 2023-09-01
A4: 釧 路 町 長 様
A6: ※申請者 | B6: 住 所 | F6: 北海道釧路郡釧路町別保1丁目1番地
B7: 団 体 名 | F7: 釧路町役場住民課 | J7: 連 絡 先 | L7: 0154-62-2121
B8: 代 表 者 | F8: 町民 太郎 | J8: 使用責任者 （火気責任者） | L8: 町民 太郎
B9: 申請書提出者 | F9: 町民 太郎 | J9: 連 絡 先 | L9: 0154-62-2121
A11: 下記のとおり申請します。
A13: ※使用 目的 | C13: 町内会総会 | J13: 営 利 目 的 非営利目的 | L13: 集合見 込人数 | O13: 30
A14: ※使用 日時 | C14: 自 | E14: 2023-09-01 | I14: 09:00:00 | L14: から
C15: 至 | E15: 2023-09-01 | I15: 13:00:00 | L15: まで | N15: 4 | P15: ※利用日数が複数日となる場合は、備考欄に日付を記載してください。
A16: ※ 使用施設名 | C16: 別保地区 | E16: 別保コミュニティセンター | I16: 遠矢地区 | K16: 河畔地区会館
E17: 天寧コミュニティセンター | K17: 鳥通地区会館
E18: 日の出会館 | K18: 柏地区会館
E19: 栄町団地集会所 | K19: 床丹地区会館
E20: 双河辺生活館 | K20: とおや交流館108
C21: セチリ地区 | E21: 釧路町コミュニティセンター | K21: 東遠野ふれあいセンター
E22: 桂地区会館 | I22: 昆布森地区 | K22: 昆布森福祉センター
E23: 国誉地区会館 | K23: 老者舞地区会館
E24: 北見団地地区会館 | K24: 海鳴り仙鳳趾館
E25: 曙地区会館 | K25: 釧路町漁民センター
E26: 北都地区会館 | K26: 知方学生活改善センター
E27: 誉会館
E28: 富原大通会館
A29: ※使用室名 | D29: 大会 議室（コミュニティホール） | I29: ステージ | M29: 作業室
D30: 小会 議室（A・B） | I30: 談話室 | M30: その他
D31: 研 修 室（A・B・C） | I31: 調理（実習）室 | M31: （ ）
D32: 和 室（A・B） | I32: 婦人研修室 | M32: 全館
D33: 集 会 室（A・B） | I33: 老人室
A34: ※使用 備品 | C34: 物 品 | F34: 机 脚・椅子 脚・放送設備・その他（ ）
C36: 体育用具 | F36: バレー用具・バドミントン用具・卓球用具・その他（ ）
A38: 使用料金 | C38: 大会議室・集会室 | F38: 和室・研修室 | H38: その他（小会議室・調理室等） | M38: 合計
A43: 備考
A46: １．※のみ記入すること
A47: ２．使用施設、使用室名は、□の中に✓すること。
A48: ３．免除団体については、正式名称を記入すること。
A49: ４．夏季料金期間：6月1日～9月30日/冬季期間料金：10月1日～5月31日
A50: ５．使用室名については１・２又は大・小はABC順とする。

Sheet 申請書
A1: 釧路町コミュニティ施設使用申請書
K3: 2023-09-01
A4: 釧 路 町 長 様
A6: ※申請者 | B6: 住 所 | F6: =入力画面!F6 -> 北海道釧路郡釧路町別保1丁目1番地
B7: 団 体 名 | F7: =入力画面!F7 -> 釧路町役場住民課 | J7: 連 絡 先 | L7: =入力画面!L7 -> 0154-62-2121
B8: 代 表 者 | F8: =入力画面!F8 -> 町民 太郎 | J8: 使用責任者 （火気責任者） | L8: =入力画面!L8 -> 町民 太郎
B9: 申請書提出者 | F9: =入力画面!F9 -> 町民 太郎 | J9: 連 絡 先 | L9: =入力画面!L9 -> 0154-62-2121
A11: 下記のとおり申請します。
A13: ※使用 目的 | C13: =入力画面!C13 -> 町内会総会 | J13: =IF(Q13=TRUE,"■","□") -> □ | K13: 営利目的 | L13: 集合見 込人数 | O13: =入力画面!O13 -> 30 | P13: 営利目的 | Q13: FALSE
J14: =IF(Q14=TRUE,"■","□") -> □ | K14: 非営利目的 | P14: 非営利目的 | Q14: FALSE
A15: ※使用 日時 | C15: 自 | E15: =入力画面!E14 -> 2023-09-01 | I15: =入力画面!I14 -> 09:00:00 | L15: から
C16: 至 | E16: =入力画面!E15 -> 2023-09-01 | I16: =入力画面!I15 -> 13:00:00 | L16: まで | N16: =入力画面!N15 -> 4
A17: ※ 使用施設名 | C17: 別保地区 | D17: =IF(Q17=TRUE,"■","□") -> □ | E17: 別保コミュニティセンター | I17: 遠矢地区 | J17: =IF(S17=TRUE,"■","□") -> □ | K17: 河畔地区会館 | P17: 別保コミュニティセンター | Q17: FALSE | R17: 河畔地区会館 | S17: FALSE
D18: =IF(Q18=TRUE,"■","□") -> □ | E18: 天寧コミュニティセンター | J18: =IF(S18=TRUE,"■","□") -> □ | K18: 鳥通地区会館 | P18: 天寧コミュニティセンター | Q18: FALSE | R18: 鳥通地区会館 | S18: FALSE
D19: □ | E19: 日の出会館 | J19: □ | K19: 柏地区会館 | P19: 日の出会館 | Q19: FALSE | R19: 柏地区会館 | S19: FALSE
D20: □ | E20: 栄町団地集会所 | J20: □ | K20: 床丹地区会館 | P20: 栄町団地集会所 | Q20: FALSE | R20: 床丹地区会館 | S20: FALSE
D21: □ | E21: 双河辺生活館 | J21: □ | K21: とおや交流館108 | P21: 双河辺生活館 | Q21: FALSE | R21: とおや交流館108 | S21: FALSE
C22: セチリ地区 | D22: □ | E22: 釧路町コミュニティセンター | J22: □ | K22: 東遠野ふれあいセンター | P22: 釧路町コミュニティセンター | Q22: FALSE | R22: 東遠野ふれあいセンター | S22: FALSE
D23: □ | E23: 桂地区会館 | I23: 昆布森地区 | J23: □ | K23: 昆布森福祉センター | P23: 桂地区会館 | Q23: FALSE | R23: 昆布森福祉センター | S23: FALSE
D24: □ | E24: 国誉地区会館 | J24: □ | K24: 老者舞地区会館 | P24: 国誉地区会館 | Q24: FALSE | R24: 老者舞地区会館 | S24: FALSE
D25: □ | E25: 北見団地地区会館 | J25: □ | K25: 海鳴り仙鳳趾館 | P25: 北見団地地区会館 | Q25: FALSE | R25: 海鳴り仙鳳趾館 | S25: FALSE
D26: □ | E26: 曙地区会館 | J26: □ | K26: 釧路町漁民センター | P26: 曙地区会館 | Q26: FALSE | R26: 釧路町漁民センター | S26: FALSE
D27: □ | E27: 北都地区会館 | J27: □ | K27: 知方学生活改善センター | P27: 北都地区会館 | Q27: FALSE | R27: 知方学生活改善センター | S27: FALSE
D28: □ | E28: 誉会館 | P28: 誉会館 | Q28: FALSE
D29: □ | E29: 富原大通会館 | P29: 富原大通会館 | Q29: FALSE
A30: ※使用室名 | C30: =IF(Q30=TRUE,"■","□") -> □ | D30: 大会 議室（コミュニティホール） | H30: =IF(S30=TRUE,"■","□") -> □ | I30: ステージ | L30: =IF(U30=TRUE,"■","□") -> □ | M30: 作業室 | P30: 大会 議室（コミュニティホール） | Q30: FALSE | R30: ステージ | S30: FALSE | T30: 作業室 | U30: FALSE
C31: =IF(Q31=TRUE,"■","□") -> □ | D31: 小会 議室（A・B） | H31: =IF(S31=TRUE,"■","□") -> □ | I31: 談話室 | L31: =IF(U31=TRUE,"■","□") -> □ | M31: その他 | P31: 小会 議室（A・B） | Q31: FALSE | R31: 談話室 | S31: FALSE | T31: その他 | U31: FALSE
C32: □ | D32: 研 修 室（A・B・C） | H32: □ | I32: 調理（実習）室 | M32: =入力画面!M31 -> （ ） | P32: 研 修 室（A・B・C） | Q32: FALSE | R32: 調理（実習）室 | S32: FALSE
C33: □ | D33: 和 室（A・B） | H33: □ | I33: 婦人研修室 | L33: □ | M33: 全館 | P33: 和 室（A・B） | Q33: FALSE | R33: 婦人研修室 | S33: FALSE | T33: 全館 | U33: FALSE
C34: □ | D34: 集 会 室（A・B） | H34: □ | I34: 老人室 | P34: 集 会 室（A・B） | Q34: FALSE | R34: 老人室 | S34: FALSE
A35: ※使用 備品 | C35: 物 品 | F35: =入力画面!F34 -> 机 脚・椅子 脚・放送設備・その他（ ）
C37: 体育用具 | F37: =入力画面!F36 -> バレー用具・バドミントン用具・卓球用具・その他（ ）
A39: 使用料金 | C39: 大会議室・集会室 | F39: 和室・研修室 | H39: その他（小会議室・調理室等） | M39: 合計
A44: 備考 | C44: =入力画面!C43 -> 0
A47: １．※のみ記入すること
A48: ２．使用施設、使用室名は、□の中に✓すること。
A49: ３．免除団体については、正式名称を記入すること。
A50: ４．夏季料金期間：6月1日～9月30日/冬季期間料金：10月1日～5月31日
A51: ５．使用室名については１・２又は大・小はABC順とする。

Sheet 許可書 ・通知書
A1: 釧路町コミュニティ施設使用許可書
K3: =入力画面!K3 -> 2023-09-01
J4: 釧 路 町 長
A6: ※申請者 | B6: 住 所 | F6: =入力画面!F6 -> 北海道釧路郡釧路町別保1丁目1番地
B7: 団 体 名 | F7: =入力画面!F7 -> 釧路町役場住民課 | J7: 連 絡 先 | L7: =入力画面!L7 -> 0154-62-2121
B8: 代 表 者 | F8: =入力画面!F8 -> 町民 太郎 | J8: 使用責任者 （火気責任者） | L8: =入力画面!L8 -> 町民 太郎
B9: 申請書提出者 | F9: =入力画面!F9 -> 町民 太郎 | J9: 連 絡 先 | L9: =入力画面!L9 -> 0154-62-2121
A13: ※使用 目的 | C13: =入力画面!C13 -> 町内会総会 | J13: =IF(申請書!Q13=TRUE,"■","□") -> □ | K13: 営利目的 | L13: 集合見 込人数 | O13: =入力画面!O13 -> 30
J14: =IF(申請書!Q14=TRUE,"■","□") -> □ | K14: 非営利目的
A15: ※使用 日時 | C15: 自 | E15: =入力画面!E14 -> 2023-09-01 | I15: =入力画面!I14 -> 09:00:00 | L15: から
C16: 至 | E16: =入力画面!E15 -> 2023-09-01 | I16: =入力画面!I15 -> 13:00:00 | L16: まで | N16: =入力画面!N15 -> 4
A17: ※ 使用施設名 | C17: 別保地区 | D17: =IF(申請書!Q17=TRUE,"■","□") -> □ | E17: 別保コミュニティセンター | I17: 遠矢地区 | J17: =IF(申請書!S17=TRUE,"■","□") -> □ | K17: 河畔地区会館
D18: =IF(申請書!Q18=TRUE,"■","□") -> □ | E18: 天寧コミュニティセンター | J18: =IF(申請書!S18=TRUE,"■","□") -> □ | K18: 鳥通地区会館
D19: =IF(申請書!Q19=TRUE,"■","□") -> □ | E19: 日の出会館 | J19: =IF(申請書!S19=TRUE,"■","□") -> □ | K19: 柏地区会館
D20: =IF(申請書!Q20=TRUE,"■","□") -> □ | E20: 栄町団地集会所 | J20: =IF(申請書!S20=TRUE,"■","□") -> □ | K20: 床丹地区会館
D21: =IF(申請書!Q21=TRUE,"■","□") -> □ | E21: 双河辺生活館 | J21: =IF(申請書!S21=TRUE,"■","□") -> □ | K21: とおや交流館108
C22: セチリ地区 | D22: =IF(申請書!Q22=TRUE,"■","□") -> □ | E22: 釧路町コミュニティセンター | J22: =IF(申請書!S22=TRUE,"■","□") -> □ | K22: 東遠野ふれあいセンター
D23: =IF(申請書!Q23=TRUE,"■","□") -> □ | E23: 桂地区会館 | I23: 昆布森地区 | J23: =IF(申請書!S23=TRUE,"■","□") -> □ | K23: 昆布森福祉センター
D24: =IF(申請書!Q24=TRUE,"■","□") -> □ | E24: 国誉地区会館 | J24: =IF(申請書!S24=TRUE,"■","□") -> □ | K24: 老者舞地区会館
D25: =IF(申請書!Q25=TRUE,"■","□") -> □ | E25: 北見団地地区会館 | J25: =IF(申請書!S25=TRUE,"■","□") -> □ | K25: 海鳴り仙鳳趾館
D26: =IF(申請書!Q26=TRUE,"■","□") -> □ | E26: 曙地区会館 | J26: =IF(申請書!S26=TRUE,"■","□") -> □ | K26: 釧路町漁民センター
D27: =IF(申請書!Q27=TRUE,"■","□") -> □ | E27: 北都地区会館 | J27: =IF(申請書!S27=TRUE,"■","□") -> □ | K27: 知方学生活改善センター
D28: =IF(申請書!Q28=TRUE,"■","□") -> □ | E28: 誉会館
D29: =IF(申請書!Q29=TRUE,"■","□") -> □ | E29: 富原大通会館
A30: ※使用室名 | C30: =IF(申請書!Q30=TRUE,"■","□") -> □ | D30: 大会 議室（コミュニティホール） | H30: =IF(申請書!S30=TRUE,"■","□") -> □ | I30: ステージ | L30: =IF(申請書!U30=TRUE,"■","□") -> □ | M30: 作業室
C31: =IF(申請書!Q31=TRUE,"■","□") -> □ | D31: 小会 議室（A・B） | H31: =IF(申請書!S31=TRUE,"■","□") -> □ | I31: 談話室 | L31: =IF(申請書!U31=TRUE,"■","□") -> □ | M31: その他
C32: =IF(申請書!Q32=TRUE,"■","□") -> □ | D32: 研 修 室（A・B・C） | H32: =IF(申請書!S32=TRUE,"■","□") -> □ | I32: 調理（実習）室 | M32: =入力画面!M31 -> （ ）
C33: =IF(申請書!Q33=TRUE,"■","□") -> □ | D33: 和 室（A・B） | H33: =IF(申請書!S33=TRUE,"■","□") -> □ | I33: 婦人研修室 | L33: =IF(申請書!U33=TRUE,"■","□") -> □ | M33: 全館
C34: =IF(申請書!Q34=TRUE,"■","□") -> □ | D34: 集 会 室（A・B） | H34: =IF(申請書!S34=TRUE,"■","□") -> □ | I34: 老人室
A35: ※使用 備品 | C35: 物 品 | F35: =入力画面!F34 -> 机 脚・椅子 脚・放送設備・その他（ ）
C37: 体育用具 | F37: =入力画面!F36 -> バレー用具・バドミントン用具・卓球用具・その他（ ）
A39: 使用料金 | C39: 大会議室・集会室 | F39: 和室・研修室 | H39: その他（小会議室・調理室等） | M39: 合計
A44: 備考 | C44: =入力画面!C43 -> 0
A52: 釧路町コミュニティ施設使用通知書（管理人用）
K54: =入力画面!K3 -> 2023-09-01
J55: 釧 路 町 長
A57: ※申請者 | B57: 住 所 | F57: =入力画面!F6 -> 北海道釧路郡釧路町別保1丁目1番地
B58: 団 体 名 | F58: =入力画面!F7 -> 釧路町役場住民課 | J58: 連 絡 先 | L58: =入力画面!L7 -> 0154-62-2121
B59: 代 表 者 | F59: =入力画面!F8 -> 町民 太郎 | J59: 使用責任者 （火気責任者） | L59: =入力画面!L8 -> 町民 太郎
B60: 申請書提出者 | F60: =入力画面!F9 -> 町民 太郎 | J60: 連 絡 先 | L60: =入力画面!L9 -> 0154-62-2121
A62: 下記のとおり許可しましたので通知します。
A64: ※使用 目的 | C64: =入力画面!C13 -> 町内会総会 | J64: =IF(申請書!Q13=TRUE,"■","□") -> □ | K64: 営利目的 | L64: 集合見 込人数 | O64: =入力画面!O13 -> 30
J65: =IF(申請書!Q14=TRUE,"■","□") -> □ | K65: 非営利目的
A66: ※使用 日時 | C66: 自 | E66: =入力画面!E14 -> 2023-09-01 | I66: =入力画面!I14 -> 09:00:00 | L66: から
C67: 至 | E67: =入力画面!E15 -> 2023-09-01 | I67: =入力画面!I15 -> 13:00:00 | L67: まで | N67: =入力画面!N15 -> 4
A68: ※ 使用施設名 | C68: 別保地区 | D68: =IF(申請書!Q17=TRUE,"■","□") -> □ | E68: 別保コミュニティセンター | I68: 遠矢地区 | J68: =IF(申請書!S17=TRUE,"■","□") -> □ | K68: 河畔地区会館
D69: =IF(申請書!Q18=TRUE,"■","□") -> □ | E69: 天寧コミュニティセンター | J69: =IF(申請書!S18=TRUE,"■","□") -> □ | K69: 鳥通地区会館
D70: =IF(申請書!Q19=TRUE,"■","□") -> □ | E70: 日の出会館 | J70: =IF(申請書!S19=TRUE,"■","□") -> □ | K70: 柏地区会館
D71: =IF(申請書!Q20=TRUE,"■","□") -> □ | E71: 栄町団地集会所 | J71: =IF(申請書!S20=TRUE,"■","□") -> □ | K71: 床丹地区会館
D72: =IF(申請書!Q21=TRUE,"■","□") -> □ | E72: 双河辺生活館 | J72: =IF(申請書!S21=TRUE,"■","□") -> □ | K72: とおや交流館108
C73: セチリ地区 | D73: =IF(申請書!Q22=TRUE,"■","□") -> □ | E73: 釧路町コミュニティセンター | J73: =IF(申請書!S22=TRUE,"■","□") -> □ | K73: 東遠野ふれあいセンター
D74: =IF(申請書!Q23=TRUE,"■","□") -> □ | E74: 桂地区会館 | I74: 昆布森地区 | J74: =IF(申請書!S23=TRUE,"■","□") -> □ | K74: 昆布森福祉センター
D75: =IF(申請書!Q24=TRUE,"■","□") -> □ | E75: 国誉地区会館 | J75: =IF(申請書!S24=TRUE,"■","□") -> □ | K75: 老者舞地区会館
D76: =IF(申請書!Q25=TRUE,"■","□") -> □ | E76: 北見団地地区会館 | J76: =IF(申請書!S25=TRUE,"■","□") -> □ | K76: 海鳴り仙鳳趾館
D77: =IF(申請書!Q26=TRUE,"■","□") -> □ | E77: 曙地区会館 | J77: =IF(申請書!S26=TRUE,"■","□") -> □ | K77: 釧路町漁民センター
D78: =IF(申請書!Q27=TRUE,"■","□") -> □ | E78: 北都地区会館 | J78: =IF(申請書!S27=TRUE,"■","□") -> □ | K78: 知方学生活改善センター
D79: =IF(申請書!Q28=TRUE,"■","□") -> □ | E79: 誉会館
D80: =IF(申請書!Q29=TRUE,"■","□") -> □ | E80: 富原大通会館
A81: ※使用室名 | C81: =IF(申請書!Q30=TRUE,"■","□") -> □ | D81: 大会 議室（コミュニティホール） | H81: =IF(申請書!S30=TRUE,"■","□") -> □ | I81: ステージ | L81: =IF(申請書!U30=TRUE,"■","□") -> □ | M81: 作業室
C82: =IF(申請書!Q31=TRUE,"■","□") -> □ | D82: 小会 議室（A・B） | H82: =IF(申請書!S31=TRUE,"■","□") -> □ | I82: 談話室 | L82: =IF(申請書!U31=TRUE,"■","□") -> □ | M82: その他
C83: =IF(申請書!Q32=TRUE,"■","□") -> □ | D83: 研 修 室（A・B・C） | H83: =IF(申請書!S32=TRUE,"■","□") -> □ | I83: 調理（実習）室 | M83: （ ）
C84: =IF(申請書!Q33=TRUE,"■","□") -> □ | D84: 和 室（A・B） | H84: =IF(申請書!S33=TRUE,"■","□") -> □ | I84: 婦人研修室 | L84: =IF(申請書!U33=TRUE,"■","□") -> □ | M84: 全館
C85: =IF(申請書!Q34=TRUE,"■","□") -> □ | D85: 集 会 室（A・B） | H85: =IF(申請書!S34=TRUE,"■","□") -> □ | I85: 老人室
A86: ※使用 備品 | C86: 物 品 | F86: =入力画面!F34 -> 机 脚・椅子 脚・放送設備・その他（ ）
C88: 体育用具 | F88: =入力画面!F36 -> バレー用具・バドミントン用具・卓球用具・その他（ ）
A90: 使用料金 | C90: 大会議室・集会室 | F90: 和室・研修室 | H90: その他（小会議室・調理室等） | M90: 合計
A95: 備考 | C95: =入力画面!C43 -> 0

Sheet 料金表
A1: 釧路町コミュニティ施設使用料
A2: 施設名 | B2: 室種別 | C2: 面積 | D2: 畳換算 | F2: 使用料（令和元年10月1日より）
F3: 町内 | O3: 町外
F4: 夏期 使用料 | I4: 冬期 使用料 | L4: 冠婚葬祭 使用料 | O4: 夏期 使用料 | R4: 冬期 使用料
A5: 釧路町 ｺﾐｭﾆﾃｨｾﾝﾀｰ | B5: 大会議室 | C5: 450 | D5: =ROUNDDOWN(C5/1.65,0) -> 272 | F5: 1740 | I5: 2030 | L5: 66000 | O5: 3480 | R5: 4060
B6: ｽﾃｰｼﾞ | C6: 79 | D6: =ROUNDDOWN(C6/1.65,0) -> 47 | F6: 大会議室使用に含む | O6: =F6 -> 大会議室使用に含む
B7: 小会議室Ａ | C7: 71 | D7: =ROUNDDOWN(C7/1.65,0) -> 43 | F7: 240 | I7: 280 | O7: =F7*2 -> 480 | R7: =I7*2 -> 560
B8: 小会議室Ｂ | C8: 71 | D8: 43 | F8: 240 | I8: 280 | O8: =F8*2 -> 480 | R8: =I8*2 -> 560
B9: 研修室Ａ | C9: 35 | D9: 21 | F9: 160 | I9: 190 | O9: 320 | R9: 380
B10: 研修室Ｂ | C10: 77 | D10: 46 | F10: 660 | I10: 770 | O10: 1320 | R10: 1540
B11: 調理実習室 | C11: 81 | D11: 49 | F11: 660 | I11: 770 | O11: 1320 | R11: 1540
A12: 別保 ｺﾐｭﾆﾃｨｾﾝﾀｰ | B12: 第1研修室 | C12: 35 | D12: 21 | F12: 160 | I12: 190 | L12: 44000 | O12: 320 | R12: 380
B13: 第2研修室 | C13: 32 | D13: =ROUNDDOWN(C13/1.65,0) -> 19 | F13: 160 | I13: 190 | O13: 320 | R13: 380
B14: ｺﾐｭﾆﾃｨﾎｰﾙ | C14: 194 | D14: =ROUNDDOWN(C14/1.65,0) -> 117 | F14: 1740 | I14: 2030 | O14: 3480 | R14: 4060
B15: ｽﾃｰｼﾞ | C15: 30 | D15: =ROUNDDOWN(C15/1.65,0) -> 18 | F15: ｺﾐｭﾆﾃｨﾎｰﾙ使用に含む | O15: =F15 -> ｺﾐｭﾆﾃｨﾎｰﾙ使用に含む
B16: 談話室 | C16: 42 | D16: 25 | F16: 160 | I16: 190 | O16: =F16*2 -> 320 | R16: =I16*2 -> 380
B17: 調理実習室 | C17: 40 | D17: 24 | F17: 160 | I17: 190 | O17: 320 | R17: 380
A18: 天寧 ｺﾐｭﾆﾃｨｾﾝﾀｰ | B18: 集会室 | C18: 144 | D18: 87 | F18: 460 | I18: 560 | L18: 11000 | O18: 920 | R18: 1120
B19: 和室 | C19: 35 | D19: 21 | F19: 150 | I19: 190 | O19: 300 | R19: 380
B20: 調理実習室 | C20: 21 | D20: 12 | F20: 70 | I20: 90 | O20: 140 | R20: 180
A21: 昆布森 福祉ｾﾝﾀｰ | B21: 老人室 | C21: 26 | D21: 15 | F21: 70 | I21: 90 | O21: 140 | R21: 180
B22: 研修室 | C22: 32 | D22: 19 | F22: 150 | I22: 190 | O22: 300 | R22: 380
B23: 婦人研修室 | C23: 37 | D23: 22 | F23: 150 | I23: 190 | O23: 300 | R23: 380
B24: 調理実習室 | C24: 38 | D24: 23 | F24: 150 | I24: 190 | O24: 300 | R24: 380
A25: 釧路町 漁民ｾﾝﾀｰ | B25: 大会議室 | C25: 368 | D25: 223 | F25: 1740 | I25: 2030 | L25: 44000 | O25: 3480 | R25: 4060
B26: ｽﾃｰｼﾞ | C26: 46 | D26: 27 | F26: 大会議室使用に含む | O26: =F26 -> 大会議室使用に含む
A27: 日の出 会館 | B27: 集会室 | C27: 196 | D27: 118 | F27: 460 | I27: 560 | L27: 11000 | O27: =F27*2 -> 920 | R27: =I27*2 -> 1120
B28: 和室（大） | C28: 21 | D28: 12 | F28: 70 | I28: 90 | O28: 140 | R28: 180
B29: 和室（小） | C29: 16 | D29: 9 | F29: 70 | I29: 90 | O29: 140 | R29: 180
B30: 会議室 | C30: 15 | D30: 9 | F30: 70 | I30: 90 | O30: 140 | R30: 180
B31: 調理室 | C31: 18 | D31: 10 | F31: 70 | I31: 90 | O31: 140 | R31: 180
A32: 双河辺 生活館 | B32: 集会室 | C32: 83 | D32: 50 | F32: 230 | I32: 280 | L32: 5500 | O32: 460 | R32: 560
B33: 和室 | C33: 24 | D33: 14 | F33: 70 | I33: 90 | O33: 140 | R33: 180
B34: 調理実習室 | C34: 15 | D34: 9 | F34: 70 | I34: 90 | O34: 140 | R34: 180
A35: 栄町団地 集会所 | B35: 集会室 | C35: 78 | D35: 47 | F35: 230 | I35: 280 | L35: 5500 | O35: 460 | R35: 560
B36: 小会議室 | C36: 13 | D36: 7 | F36: 70 | I36: 90 | O36: 140 | R36: 180
B37: 調理室 | C37: 16 | D37: 9 | F37: 70 | I37: 90 | O37: 140 | R37: 180
A38: 桂 地区会館 | B38: 大研修室 | C38: 169 | D38: 102 | F38: 460 | I38: 560 | L38: 11000 | O38: 920 | R38: 1120
B39: ｽﾃｰｼﾞ | C39: 41 | D39: 24 | F39: 大研修室使用に含む | O39: =F39 -> 大研修室使用に含む
B40: 和室 | C40: 18 | D40: 10 | F40: 70 | I40: 90 | O40: =F40*2 -> 140 | R40: =I40*2 -> 180
B41: 小研修室 | C41: 12 | D41: 7 | F41: 70 | I41: 90 | O41: 140 | R41: 180
B42: 調理実習室 | C42: 26 | D42: 15 | F42: 70 | I42: 90 | O42: 140 | R42: 180
A43: 国誉 地区会館 | B43: 集会室 | C43: 55 | D43: 33 | F43: 150 | I43: 190 | L43: 5500 | O43: 300 | R43: 380
B44: 和室 | C44: 20 | D44: 12 | F44: 70 | I44: 90 | O44: 140 | R44: 180
B45: 調理実習室 | C45: 13 | D45: 7 | F45: 70 | I45: 90 | O45: 140 | R45: 180
A46: 北見団地 地区会館 | B46: 集会室 | C46: 55 | D46: 33 | F46: 150 | I46: 190 | L46: 5500 | O46: 300 | R46: 380
B47: 和室 | C47: 20 | D47: 12 | F47: 70 | I47: 90 | O47: 140 | R47: 180
B48: 会議室 | C48: 35 | D48: 21 | F48: 150 | I48: 190 | O48: 300 | R48: 380
B49: 調理室 | C49: 13 | D49: 7 | F49: 70 | I49: 90 | O49: 140 | R49: 180
A50: 曙 地区会館 | B50: 集会室 | C50: 70 | D50: 42 | F50: 230 | I50: 280 | L50: 5500 | O50: 460 | R50: 560
B51: 和室1 | C51: 20 | D51: 12 | F51: 70 | I51: 90 | O51: 140 | R51: 180
B52: 和室2 | C52: 17 | D52: 10 | F52: 70 | I52: 90 | O52: 140 | R52: 180
B53: 調理室 | C53: 21 | D53: 12 | F53: 70 | I53: 90 | O53: 140 | R53: 180
A54: 北都 地区会館 | B54: 集会室 | C54: 89 | D54: 53 | F54: 310 | I54: 370 | L54: 11000 | O54: 620 | R54: 740
B55: 和室1 | C55: 20 | D55: 12 | F55: 70 | I55: 90 | O55: 140 | R55: 180
B56: 和室2 | C56: 17 | D56: 10 | F56: 70 | I56: 90 | O56: 140 | R56: 180
B57: 調理室 | C57: 21 | D57: 12 | F57: 70 | I57: 90 | O57: 140 | R57: 180
A58: 誉会館 | B58: 集会室 | C58: 134 | D58: 81 | F58: 460 | I58: 560 | L58: 11000 | O58: 920 | R58: 1120
B59: ｽﾃｰｼﾞ | C59: 36 | D59: 21 | F59: 集会室使用に含む | O59: =F59 -> 集会室使用に含む
B60: 作業室 | C60: 27 | D60: 16 | F60: 70 | I60: 90 | O60: =F60*2 -> 140 | R60: =I60*2 -> 180
B61: 研修室Ａ | C61: 22 | D61: 13 | F61: 70 | I61: 90 | O61: 140 | R61: 180
B62: 研修室Ｂ | C62: 22 | D62: 13 | F62: 70 | I62: 90 | O62: 140 | R62: 180
B63: 研修室Ｃ | C63: 33 | D63: 20 | F63: 150 | I63: 190 | O63: 300 | R63: 380
B64: 相談室 | C64: 15 | D64: 9 | F64: 70 | I64: 90 | O64: 140 | R64: 180
B65: 調理実習室 | C65: 23 | D65: 13 | F65: 70 | I65: 90 | O65: 140 | R65: 180
A66: 富原 大通会館 | B66: 集会室Ａ | C66: 75 | D66: 45 | F66: 230 | I66: 280 | L66: 11000 | O66: 460 | R66: 560
B67: 集会室Ｂ | C67: 60 | D67: 36 | F67: 230 | I67: 280 | O67: 460 | R67: 560
B68: 研修室 | C68: 27 | D68: 16 | F68: 70 | I68: 90 | O68: 140 | R68: 180
B69: 和室Ａ | C69: 20 | D69: 12 | F69: 70 | I69: 90 | O69: 140 | R69: 180
B70: 和室Ｂ | C70: 16 | D70: 9 | F70: 70 | I70: 90 | O70: 140 | R70: 180
B71: 調理実習室 | C71: 32 | D71: 19 | F71: 150 | I71: 190 | O71: 300 | R71: 380
A72: 河畔 地区会館 | B72: 集会室 | C72: 148 | D72: 89 | F72: 460 | I72: 560 | L72: 11000 | O72: 920 | R72: 1120
B73: 和室1 | C73: 17 | D73: 10 | F73: 70 | I73: 90 | O73: 140 | R73: 180
B74: 和室2 | C74: 20 | D74: 12 | F74: 70 | I74: 90 | O74: 140 | R74: 180
B75: 調理室 | C75: 20 | D75: 12 | F75: 70 | I75: 90 | O75: 140 | R75: 180
A76: 鳥通地区会館 | B76: 集会室 | C76: 55 | D76: 33 | F76: 150 | I76: 190 | L76: 5500 | O76: 300 | R76: 380
B77: 和室 | C77: 20 | D77: 12 | F77: 70 | I77: 90 | O77: 140 | R77: 180
B78: 調理室 | C78: 13 | D78: 7 | F78: 70 | I78: 90 | O78: 140 | R78: 180
A79: 柏 地区会館 | B79: 集会室 | C79: 70 | D79: =ROUNDDOWN(C79/1.65,0) -> 42 | F79: 230 | I79: 280 | L79: 5500 | O79: 460 | R79: 560
B80: 研修室1 | C80: 20 | D80: 12 | F80: 70 | I80: 90 | O80: 140 | R80: 180
B81: 研修室2 | C81: 17 | D81: 10 | F81: 70 | I81: 90 | O81: 140 | R81: 180
B82: 調理室 | C82: 21 | D82: 12 | F82: 70 | I82: 90 | O82: 140 | R82: 180
A83: 床丹 地区会館 | B83: 集会室 | C83: 89 | D83: 53 | F83: 310 | I83: 370 | L83: 11000 | O83: 620 | R83: 740
B84: 研修室1 | C84: 17 | D84: 10 | F84: 70 | I84: 90 | O84: 140 | R84: 180
B85: 研修室2 | C85: 13 | D85: 7 | F85: 70 | I85: 90 | O85: 140 | R85: 180
B86: 調理室 | C86: 21 | D86: 12 | F86: 70 | I86: 90 | O86: 140 | R86: 180
A87: とおや 交流館108 | B87: 集会室Ａ | C87: 65 | D87: 39 | F87: 230 | I87: 280 | L87: 11000 | O87: 460 | R87: 560
B88: 集会室Ｂ | C88: 49 | D88: 29 | F88: 150 | I88: 190 | O88: 300 | R88: 380
B89: 和室Ａ | C89: 24 | D89: 14 | F89: 70 | I89: 90 | O89: 140 | R89: 180
B90: 和室Ｂ | C90: 26 | D90: 15 | F90: 70 | I90: 90 | O90: 140 | R90: 180
B91: 調理実習室 | C91: 28 | D91: 16 | F91: 70 | I91: 90 | O91: 140 | R91: 180
A92: 東遠野 ふれあいｾﾝﾀｰ | B92: 多目的室 | C92: 88 | D92: 53 | F92: 310 | I92: 370 | L92: 11000 | O92: 620 | R92: 740
B93: 生活改善室 | C93: 13 | D93: 7 | F93: 70 | I93: 90 | O93: 140 | R93: 180
B94: 和室 | C94: 21 | D94: 12 | F94: 70 | I94: 90 | O94: 140 | R94: 180
B95: 健康管理室 | C95: 14 | D95: 8 | F95: 70 | I95: 90 | O95: 140 | R95: 180
B96: 調理室 | C96: 24 | D96: 14 | F96: 70 | I96: 90 | O96: 140 | R96: 180
A97: 老者舞 地区会館 | B97: 大研修室 | C97: 112 | D97: 67 | F97: 460 | I97: 560 | L97: 11000 | O97: 920 | R97: 1120
B98: ｽﾃｰｼﾞ | C98: 39 | D98: 23 | F98: 大研修室使用に含む | O98: =F98 -> 大研修室使用に含む
B99: 和室 | C99: 22 | D99: 13 | F99: 70 | I99: 90 | O99: =F99*2 -> 140 | R99: =I99*2 -> 180
B100: 小研修室 | C100: 23 | D100: 13 | F100: 70 | I100: 90 | O100: 140 | R100: 180
B101: 調理実習室 | C101: 37 | D101: 22 | F101: 150 | I101: 190 | O101: 300 | R101: 380
A102: 海鳴り 仙鳳趾館 | B102: 大会議室 | C102: 89 | D102: 53 | F102: 310 | I102: 370 | L102: 11000 | O102: 620 | R102: 740
B103: 中会議室（1） | C103: 21 | D103: 12 | F103: 70 | I103: 90 | O103: 140 | R103: 180
B104: 中会議室（2） | C104: 21 | D104: 12 | F104: 70 | I104: 90 | O104: 140 | R104: 180
B105: 調理室 | C105: 60 | D105: 36 | F105: 230 | I105: 280 | O105: 460 | R105: 560
A106: 知方学 生活改善ｾﾝﾀｰ | B106: 第1研修室 | C106: 45 | D106: 27 | F106: 150 | I106: 190 | L106: 5500 | O106: 300 | R106: 380
B107: 第2研修室 | C107: 27 | D107: 16 | F107: 70 | I107: 90 | O107: 140 | R107: 180
B108: 調理実習室 | C108: 25 | D108: 15 | F108: 70 | I108: 90 | O108: 140 | R108: 180
A110: １）料金は電気・暖房等の実費額を含んでいます。 ２）夏期料金期間は６月１日から９月３０日まで、冬期料金期間は１０月１日から５月３１日まで。 ３）減額団体に該当する場合は、上記使用料の半額となります。
